fUSD/lending_fUSD_20250521
["ID","MTS","AMOUNT","RATE_DAILY","PERIOD"]
[361811874,1747823485966,-3624.48,0.00033424,5]
[361811875,1747823485976,-1592.89,0.00033424,5]
[361811876,1747823485986,-420.0,0.00033424,5]
[361811877,1747823485996,-420.0,0.00033424,5]
[361811878,1747823486006,-3239.25,0.00033424,5]
[361811879,1747823486015,-420.0,0.00033424,5]
[361811880,1747823486025,-4626.37,0.00033424,5]
[361811881,1747823486034,-420.0,0.00033424,5]
[361811882,1747823486044,-1377.38,0.00033424,5]
[361811883,1747823486054,-2100.46,0.00033424,5]
[361811884,1747823486063,-613.45,0.00033424,5]
[361811885,1747823486072,-232873.01,0.00033424,5]
[361811886,1747823486081,-420.0,0.00033424,5]
[361811887,1747823486091,-420.0,0.00033424,5]
[361811888,1747823486100,-814.19,0.00033424,5]
[361811889,1747823486110,-2870.6,0.00033424,5]
[361811890,1747823486119,-420.0,0.00033424,5]
[361811891,1747823486130,-420.0,0.00033424,5]
[361811892,1747823486139,-544.44,0.00033424,5]
[361811893,1747823486149,-2582.79,0.00033424,5]
[361811894,1747823486159,-1455.85,0.00033424,5]
[361811895,1747823486168,-3817.8,0.00033424,5]
[361811896,1747823486178,-1140.2,0.00033424,5]
[361811897,1747823486189,-1001.8,0.00033424,5]
[361811898,1747823486198,-24741.12,0.00033424,5]
[361811899,1747823486208,-746.18,0.00033424,5]
[361811900,1747823486217,-1332.61,0.00033424,5]
[361811901,1747823486227,-847.4,0.00033424,5]
[361811902,1747823486237,-6653.58,0.00033424,5]
[361811903,1747823486247,-2208.36,0.00033424,5]
[361811904,1747823486256,-420.0,0.00033424,5]
[361811905,1747823486266,-3466.92,0.00033424,5]
[361811906,1747823486276,-2780.98,0.00033424,5]
[361811907,1747823486286,-756.27,0.00033424,5]
[361811908,1747823486301,-4377.12,0.00033424,5]
[361811909,1747823486311,-3727.2,0.00033424,5]
[361811910,1747823486320,-43430.9,0.00033424,5]
[361811911,1747823486330,-662.42,0.00033424,5]
[361811912,1747823486340,-420.0,0.00033424,5]
[361811913,1747823486349,-1355.36,0.00033424,5]
[361811914,1747823486363,-1646.2,0.00033424,5]
[361811915,1747823486374,-420.0,0.00033424,5]
[361811916,1747823486385,-692.1,0.00033424,5]
[361811917,1747823486396,-420.0,0.00033424,5]
[361811918,1747823486406,-3823.68,0.00033424,5]
[361811919,1747823486416,-1950.11,0.00033424,5]
[361811920,1747823486425,-420.0,0.00033424,5]
[361811921,1747823486437,-1929.18,0.00033424,5]
[361811922,1747823486447,-1375.19,0.00033424,5]
[361811923,1747823486458,-694.13,0.00033424,5]
[361811924,1747823486468,-27430.46,0.00033424,5]
[361811925,1747823486479,-420.0,0.00033424,5]
[361811926,1747823486488,-2620.97,0.00033424,5]
[361811927,1747823486498,-1035.87,0.00033424,5]
[361811928,1747823486508,-8392.23,0.00033424,5]
[361811929,1747823486519,-3873.45,0.00033424,5]
[361811930,1747823486529,-420.0,0.00033424,5]
[361811931,1747823486541,-420.0,0.00033424,5]
[361811932,1747823486551,-831.34,0.00033424,5]
[361811933,1747823486562,-683.8,0.00033424,5]
[361811934,1747823486572,-420.0,0.00033424,5]
[361811935,1747823486582,-648.18,0.00033424,5]
[361811936,1747823486592,-420.0,0.00033424,5]
[361811937,1747823486603,-420.0,0.00033424,5]
[361811938,1747823486612,-333.94,0.00033424,5]
[361811939,1747823486622,-2236.59,0.00033424,5]
[361811940,1747823486632,-862.9,0.00033424,5]
[361811941,1747823486643,-2431.99,0.00033424,5]
[361811942,1747823486653,-2055.72,0.00033424,5]
[361811943,1747823486663,-30819.65,0.00033424,5]
[361811944,1747823486673,-426.36,0.00033424,5]
[361811945,1747823486684,-420.0,0.00033424,5]
[361811946,1747823486694,-3529.5,0.00033424,5]
[361811947,1747823486703,-420.0,0.00033424,5]
[361811948,1747823486716,-420.0,0.00033424,5]
[361811949,1747823486725,-420.0,0.00033424,5]
[361811950,1747823486735,-507.94,0.00033424,5]
[361811951,1747823486745,-7158.91,0.00033424,5]
[361811952,1747823486755,-1372.96,0.00033424,5]
[361811953,1747823486765,-11263.62,0.00033424,5]
[361811954,1747823486776,-1395.97,0.00033424,5]
[361811955,1747823486785,-10218.82,0.00033424,5]
[361811956,1747823486796,-420.0,0.00033424,5]
[361811957,1747823486807,-11955.57,0.00033424,5]
[361811958,1747823486818,-420.0,0.00033424,5]
[361811959,1747823486828,-903.34,0.00033424,5]
[361811960,1747823486838,-4237.43,0.00033424,5]
[361811961,1747823486847,-1156.02,0.00033424,5]
[361811962,1747823486858,-1250.1,0.00033424,5]
[361811963,1747823486867,-420.0,0.00033424,5]
[361811964,1747823486878,-1940.56,0.00033424,5]
[361811965,1747823486888,-1535.0,0.00033424,5]
[361811966,1747823486897,-353.33303892,0.00033424,5]
[361811967,1747823486907,-2611.65,0.00033424,5]
[361811968,1747823486917,-2088.87,0.00033424,5]
[361811969,1747823486927,-420.0,0.00033424,5]
[361811970,1747823486937,-604.9,0.00033424,5]
[361811971,1747823486946,-436.47,0.00033424,5]
[361811972,1747823486956,-420.0,0.00033424,5]
[361811973,1747823486966,-420.0,0.00033424,5]
[361811974,1747823486975,-512.59,0.00033424,5]
[361811975,1747823486985,-3994.4,0.00033424,5]
[361811976,1747823486996,-4967.59,0.00033424,5]
[361811977,1747823487006,-420.0,0.00033424,5]
[361811978,1747823487016,-420.0,0.00033424,5]
[361811979,1747823487026,-420.0,0.00033424,5]
[361811980,1747823487035,-997.3,0.00033424,5]
[361811981,1747823487046,-6358.26,0.00033424,5]
[361811982,1747823487056,-2461.55,0.00033424,5]
[361811983,1747823487066,-3960.15,0.00033424,5]
[361811984,1747823487076,-420.0,0.00033424,5]
[361811985,1747823487087,-2650.09,0.00033424,5]
[361811986,1747823487096,-1029.17,0.00033424,5]
[361811987,1747823487107,-655.48,0.00033424,5]
[361811988,1747823487119,-2763.51,0.00033424,5]
[361811989,1747823487127,-3823.46,0.00033424,5]
[361811990,1747823487137,-420.0,0.00033424,5]
[361811991,1747823487147,-420.0,0.00033424,5]
[361811992,1747823487157,-420.0,0.00033424,5]
[361811993,1747823487315,-420.0,0.00033424,5]
[361811994,1747823487326,-2138.94,0.00033424,5]
[361811995,1747823487337,-420.0,0.00033424,5]
[361811996,1747823487347,-467.69856244,0.00033424,5]
[361811997,1747823487360,-3514.65,0.00033424,5]
[361811998,1747823487371,-578.47,0.00033424,5]
[361811999,1747823487381,-1778.66,0.00033424,5]
[361812000,1747823487391,-420.0,0.00033424,5]
[361812001,1747823487403,-4923.96,0.00033424,5]
[361812002,1747823487413,-7467.95,0.00033424,5]
[361812003,1747823487423,-420.0,0.00033424,5]
[361812004,1747823487434,-420.87,0.00033424,5]
[361812005,1747823487446,-527.25672175,0.00033424,5]
[361812006,1747823487456,-420.0,0.00033424,5]
[361812007,1747823487466,-1388.95,0.00033424,5]
[361812008,1747823487476,-1642.25,0.00033424,5]
[361812009,1747823487486,-15894.82,0.00033424,5]
[361812010,1747823487496,-7928.56,0.00033424,5]
[361812011,1747823487506,-3648.84,0.00033424,5]
[361812012,1747823487516,-535.54,0.00033424,5]
[361812013,1747823487527,-420.0,0.00033424,5]
[361812014,1747823487537,-18415.06,0.00033424,5]
[361812015,1747823487548,-420.0,0.00033424,5]
[361812016,1747823487558,-2111.71,0.00033424,5]
[361812017,1747823487568,-584.64,0.00033424,5]
[361812018,1747823487578,-2534.37,0.00033424,5]
[361812019,1747823487588,-1096.3,0.00033424,5]
[361812020,1747823487598,-420.0,0.00033424,5]
[361812021,1747823487608,-420.0,0.00033424,5]
[361812022,1747823487618,-420.0,0.00033424,5]
[361812023,1747823487628,-2727.38,0.00033424,5]
[361812024,1747823487638,-481.82,0.00033424,5]
[361812025,1747823487649,-2791.01,0.00033424,5]
[361812026,1747823487659,-4064.18,0.00033424,5]
[361812027,1747823487669,-1605.11,0.00033424,5]
[361812028,1747823487680,-394.1542749,0.00033424,5]
[361812029,1747823487691,-420.0,0.00033424,5]
[361812030,1747823487702,-420.0,0.00033424,5]
[361812031,1747823487712,-583.63,0.00033424,5]
[361812032,1747823487722,-3277.38,0.00033424,5]
[361812033,1747823487732,-1946.19,0.00033424,5]
[361812034,1747823487742,-453.41205052,0.00033424,5]
[361812035,1747823487753,-420.0,0.00033424,5]
[361812036,1747823487763,-4162.95,0.00033424,5]
[361812037,1747823487773,-486.64,0.00033424,5]
[361812038,1747823487783,-1793.09,0.00033424,5]
[361812039,1747823487794,-2365.3,0.00033424,5]
[361812040,1747823487805,-5030.39,0.00033424,5]
[361812041,1747823487816,-853.5,0.00033424,5]
[361812042,1747823487826,-420.0,0.00033424,5]
[361812043,1747823487836,-420.0,0.00033424,5]
[361812044,1747823487847,-420.0,0.00033424,5]
[361812045,1747823487857,-1065.78,0.00033424,5]
[361812046,1747823487868,-420.0,0.00033424,5]
[361812047,1747823487878,-5351.26,0.00033424,5]
[361812048,1747823487888,-8618.58,0.00033424,5]
[361812049,1747823487898,-420.0,0.00033424,5]
[361812050,1747823487908,-3564.21,0.00033424,5]
[361812051,1747823487919,-1488.03,0.00033424,5]
[361812052,1747823487930,-4366.01,0.00033424,5]
[361812053,1747823487940,-1284.33,0.00033424,5]
[361812054,1747823487952,-5387.66,0.00033424,5]
[361812055,1747823487962,-420.0,0.00033424,5]
[361812056,1747823487972,-420.0,0.00033424,5]
[361812057,1747823487981,-643.95,0.00033424,5]
[361812058,1747823487991,-11304.41,0.00033424,5]
[361812059,1747823488001,-420.0,0.00033424,5]
[361812060,1747823488011,-441.74,0.00033424,5]
[361812061,1747823488021,-420.0,0.00033424,5]
[361812062,1747823488031,-751.7,0.00033424,5]
[361812063,1747823488041,-873.4,0.00033424,5]
[361812064,1747823488052,-420.0,0.00033424,5]
[361812065,1747823488061,-1096.95,0.00033424,5]
[361812066,1747823488072,-781.82,0.00033424,5]
[361812067,1747823488082,-420.0,0.00033424,5]
[361812068,1747823488092,-871.43,0.00033424,5]
[361812069,1747823488102,-420.0,0.00033424,5]
[361812070,1747823488112,-5264.38,0.00033424,5]
[361812071,1747823488121,-420.0,0.00033424,5]
[361812072,1747823488132,-420.0,0.00033424,5]
[361812073,1747823488143,-778.01,0.00033424,5]
[361812074,1747823488153,-3424.15,0.00033424,5]
[361812075,1747823488164,-6336.25,0.00033424,5]
[361812076,1747823488174,-420.0,0.00033424,5]
[361812077,1747823488183,-575.11,0.00033424,5]
[361812078,1747823488193,-2227.33,0.00033424,5]
[361812079,1747823488204,-469.12,0.00033424,5]
[361812080,1747823488214,-2778.38,0.00033424,5]
[361812081,1747823488224,-2282.35,0.00033424,5]
[361812082,1747823488234,-420.0,0.00033424,5]
[361812083,1747823488245,-420.0,0.00033424,5]
[361812084,1747823488255,-420.0,0.00033424,5]
[361812085,1747823488265,-420.0,0.00033424,5]
[361812086,1747823488274,-2508.06,0.00033424,5]
[361812087,1747823488284,-477.54,0.00033424,5]
[361812088,1747823488295,-420.0,0.00033424,5]
[361812089,1747823488304,-45711.39,0.00033424,5]
[361812090,1747823488315,-1438.01,0.00033424,5]
[361812091,1747823488324,-420.0,0.00033424,5]
[361812092,1747823488334,-420.0,0.00033424,5]
[361812093,1747823488344,-492.73,0.00033424,5]
[361812094,1747823488354,-2994.99,0.00033424,5]
[361812095,1747823488366,-2847.74,0.00033424,5]
[361812096,1747823488375,-845.16,0.00033424,5]
[361812097,1747823488385,-420.0,0.00033424,5]
[361812098,1747823488396,-908.75,0.00033424,5]
[361812099,1747823488406,-7033.02,0.00033424,5]
[361812100,1747823488416,-420.0,0.00033424,5]
[361812101,1747823488426,-420.0,0.00033424,5]
[361812102,1747823488436,-20631.06,0.00033424,5]
[361812103,1747823488447,-1653.01,0.00033424,5]
[361812104,1747823488456,-420.0,0.00033424,5]
[361812105,1747823488466,-420.0,0.00033424,5]
[361812106,1747823488475,-440.6,0.00033424,5]
[361812107,1747823488485,-480.69,0.00033424,5]
[361812108,1747823488495,-420.0,0.00033424,5]
[361812109,1747823488505,-1811.64,0.00033424,5]
[361812110,1747823488515,-420.0,0.00033424,5]
[361812111,1747823488526,-1620.28,0.00033424,5]
[361812112,1747823488536,-1675.59,0.00033424,5]
[361812113,1747823488547,-1341.01,0.00033424,5]
[361812114,1747823488558,-2039.96,0.00033424,5]
[361812115,1747823488568,-1650.39,0.00033424,5]
[361812116,1747823488578,-2331.07,0.00033424,5]
[361812117,1747823488587,-659.87,0.00033424,5]
[361812118,1747823488597,-1130.47,0.00033424,5]
[361812119,1747823488607,-8529.77,0.00033424,5]
[361812120,1747823488619,-1170.52,0.00033424,5]
[361812121,1747823488629,-420.0,0.00033424,5]
[361812122,1747823488639,-1019.14,0.00033424,5]
[361812123,1747823488651,-13852.49,0.00033424,5]
[361812124,1747823488661,-420.0,0.00033424,5]
[361812125,1747823488671,-594.46,0.00033424,5]
[361812126,1747823488681,-420.0,0.00033424,5]
[361812127,1747823488691,-528.88,0.00033424,5]
[361812128,1747823488703,-420.0,0.00033424,5]
[361812129,1747823488712,-729.81,0.00033424,5]
[361812130,1747823488722,-6448.31,0.00033424,5]
[361812131,1747823488732,-1260.39,0.00033424,5]
[361812132,1747823488742,-4031.81,0.00033424,5]
[361812133,1747823488752,-1826.19,0.00033424,5]
[361812134,1747823488762,-15980.3,0.00033424,2]
[361812135,1747823488772,-569.82,0.00033424,5]
[361812136,1747823488781,-1991.55,0.00033424,5]
[361812137,1747823488791,-420.0,0.00033424,5]
[361812138,1747823488801,-420.0,0.00033424,5]
[361812139,1747823488811,-711.84,0.00033424,5]
[361812140,1747823488822,-1316.77,0.00033424,5]
[361812141,1747823488831,-1559.3,0.00033424,5]
[361812142,1747823488841,-932.88,0.00033424,5]
[361812143,1747823488851,-420.0,0.00033424,5]
[361812144,1747823488862,-1828.91,0.00033424,5]
[361812145,1747823488873,-1672.61,0.00033424,5]
[361812146,1747823488883,-420.0,0.00033424,5]
[361812147,1747823488893,-420.0,0.00033424,5]
[361812148,1747823488904,-6643.48,0.00033424,5]
[361812149,1747823488914,-420.0,0.00033424,5]
[361812150,1747823488925,-5987.12,0.00033424,5]
[361812151,1747823488935,-420.0,0.00033424,5]
[361812152,1747823488944,-4970.74,0.00033424,5]
[361812153,1747823488954,-420.0,0.00033424,5]
[361812154,1747823488964,-420.0,0.00033424,5]
[361812155,1747823488974,-908.99,0.00033424,5]
[361812156,1747823488984,-420.0,0.00033424,5]
[361812157,1747823488994,-1754.62,0.00033424,5]
[361812158,1747823489004,-636.17,0.00033424,5]
[361812159,1747823489014,-907.69,0.00033424,5]
[361812160,1747823489024,-420.0,0.00033424,5]
[361812161,1747823489033,-434.27,0.00033424,5]
[361812162,1747823489044,-420.0,0.00033424,5]
[361812163,1747823489054,-420.0,0.00033424,5]
[361812164,1747823489063,-14282.24,0.00033424,5]
[361812165,1747823489073,-1727.02,0.00033424,5]
[361812166,1747823489083,-2354.7,0.00033424,5]
[361812167,1747823489093,-2934.17,0.00033424,5]
[361812168,1747823489104,-420.0,0.00033424,5]
[361812169,1747823489114,-2098.09,0.00033424,5]
[361812170,1747823489124,-2370.12,0.00033424,5]
[361812171,1747823489134,-635.77,0.00033424,5]
[361812172,1747823489144,-1608.41,0.00033424,5]
[361812173,1747823489154,-2448.57,0.00033424,5]
[361812174,1747823489164,-565.39,0.00033424,5]
[361812175,1747823489173,-2132.27,0.00033424,5]
[361812176,1747823489184,-420.0,0.00033424,5]
[361812177,1747823489194,-420.0,0.00033424,5]
[361812178,1747823489204,-832.67,0.00033424,5]
[361812179,1747823489214,-420.0,0.00033424,5]
[361812180,1747823489223,-1444.81,0.00033424,5]
[361812181,1747823489233,-1244.04,0.00033424,5]
[361812182,1747823489243,-674.57,0.00033424,5]
[361812183,1747823489252,-14461.5,0.00033424,5]
[361812184,1747823489262,-4167.33,0.00033424,5]
[361812185,1747823489271,-5215.67,0.00033424,5]
[361812186,1747823489282,-888.13,0.00033424,5]
[361812187,1747823489292,-548.09,0.00033424,5]
[361812188,1747823489302,-420.0,0.00033424,5]
[361812189,1747823489311,-420.0,0.00033424,5]
[361812190,1747823489322,-207938.64,0.00033424,5]
[361812191,1747823489331,-521.75032791,0.00033424,5]
[361812192,1747823489341,-420.0,0.00033424,5]
[361812193,1747823489352,-420.0,0.00033424,5]
[361812194,1747823489363,-2319.06,0.00033424,5]
[361812195,1747823489373,-5582.21,0.00033424,5]
[361812196,1747823489383,-3257.11,0.00033424,5]
[361812197,1747823489393,-1507.21,0.00033424,5]
[361812198,1747823489403,-420.0,0.00033424,5]
[361812199,1747823489413,-460.0,0.00033424,5]
[361812200,1747823489423,-1493.55,0.00033424,5]
[361812201,1747823489432,-1088.44,0.00033424,5]
[361812202,1747823489444,-2557.88,0.00033424,5]
[361812203,1747823489454,-697.67,0.00033424,5]
[361812204,1747823489464,-2873.2,0.00033424,5]
[361812205,1747823489474,-420.0,0.00033424,5]
[361812206,1747823489484,-420.0,0.00033424,5]
[361812207,1747823489494,-480.01,0.00033424,5]
[361812208,1747823489503,-1657.0,0.00033424,5]
[361812209,1747823489513,-2282.96,0.00033424,5]
[361812210,1747823489870,-420.0,0.00033424,5]
[361812211,1747823489889,-799.92,0.00033424,5]
[361812212,1747823489899,-18765.11,0.00033424,5]
[361812213,1747823489909,-1063.9,0.00033424,5]
[361812214,1747823489919,-420.0,0.00033424,5]
[361812215,1747823489929,-1719.68,0.00033424,5]
[361812216,1747823489939,-673.17,0.00033424,5]
[361812217,1747823489950,-3847.23,0.00033424,5]
[361812218,1747823489960,-420.0,0.00033424,5]
[361812219,1747823489970,-420.0,0.00033424,5]
[361812220,1747823489980,-474.32,0.00033424,5]
[361812221,1747823489989,-549.05,0.00033424,5]
[361812222,1747823490000,-420.0,0.00033424,5]
[361812223,1747823490010,-2564.95,0.00033424,5]
[361812224,1747823490020,-420.0,0.00033424,5]
[361812225,1747823490031,-1818.07,0.00033424,5]
[361812226,1747823490044,-42262.48,0.00033424,5]
[361812227,1747823490053,-420.0,0.00033424,5]
[361812228,1747823490063,-1554.78,0.00033424,5]
[361812229,1747823490072,-4510.74,0.00033424,5]
[361812230,1747823490082,-516.93,0.00033424,5]
[361812231,1747823490092,-420.0,0.00033424,5]
[361812232,1747823490102,-3137.08,0.00033424,5]
[361812233,1747823490112,-506.82,0.00033424,5]
[361812234,1747823490121,-9532.22,0.00033424,5]
[361812235,1747823490131,-420.0,0.00033424,5]
[361812236,1747823490142,-1001.23,0.00033424,5]
[361812237,1747823490153,-1349.86,0.00033424,5]
[361812238,1747823490163,-874.84,0.00033424,5]
[361812239,1747823490173,-2359.68,0.00033424,5]
[361812240,1747823490183,-627.61,0.00033424,5]
[361812241,1747823490193,-670.93,0.00033424,5]
[361812242,1747823490204,-420.0,0.00033424,5]
[361812243,1747823490213,-1909.1,0.00033424,5]
[361812244,1747823490223,-3667.82,0.00033424,5]
[361812245,1747823490233,-3774.82,0.00033424,5]
[361812246,1747823490244,-713.73,0.00033424,5]
[361812247,1747823490255,-276.20005277,0.00033424,5]
[361812248,1747823490266,-420.0,0.00033424,5]
[361812249,1747823490276,-1201.04,0.00033424,5]
[361812250,1747823490287,-420.0,0.00033424,5]
[361812251,1747823490299,-420.0,0.00033424,5]
[361812252,1747823490308,-420.0,0.00033424,5]
[361812253,1747823490318,-84932.2129114,0.00033424,2]
[361812254,1747823490327,-380.59503847,0.00033424,2]
[361812255,1747823490337,-853.85614654,0.00033461,2]
[361812256,1747823490350,-660.48259557,0.00033465,2]
[361812257,1747823490362,-500.0,0.00033473,4]
[361812258,1747823490372,-500.0,0.00033473,5]
[361812259,1747823490381,-500.0,0.00033473,5]
[361812260,1747823490391,-502.28145813,0.00033473,5]
[361812261,1747823490402,-500.0,0.00033473,5]
[361812262,1747823490412,-162.38208984,0.00033473,5]
[361812263,1747823490422,-500.5449482,0.00033473,5]
[361812264,1747823490432,-152.96744924,0.00033473,5]
[361812265,1747823490444,-152.79504277,0.00033473,5]
[361812266,1747823490455,-500.0,0.00033473,5]
[361812267,1747823490464,-500.0,0.00033473,5]
[361812268,1747823490474,-500.0,0.00033473,5]
[361812269,1747823490484,-505.62459912,0.00033473,5]
[361812270,1747823490494,-500.0,0.00033473,5]
[361812271,1747823490504,-501.24673176,0.00033473,5]
[361812272,1747823490514,-505.29363203,0.00033473,5]
[361812273,1747823490525,-500.0,0.00033473,5]
[361812274,1747823490535,-500.0,0.00033473,5]
[361812275,1747823490545,-501.54142638,0.00033473,5]
[361812276,1747823490555,-501.10980992,0.00033473,5]
[361812277,1747823490565,-155.15,0.000335,31]
[361812278,1747823490575,-155.15,0.000335,31]
[361812279,1747823490585,-280.72768,0.0003351,2]
[361812280,1747823490596,-274.65450403,0.00033533,15]
[361812281,1747823490606,-302.15,0.0003355,2]
[361812282,1747823490615,-302.23,0.00033581,2]
[361812283,1747823490625,-303.2,0.00033581,2]
[361812284,1747823490635,-302.75,0.00033581,2]
[361812285,1747823490644,-301.28,0.00033581,2]
[361812286,1747823490654,-660.48259557,0.00033598,2]
[361812287,1747823490664,-274.65450403,0.00033686,15]
[361812288,1747823490674,-853.85614654,0.00033689,2]
[361812289,1747823490684,-649.0,0.00033689,5]
[361812290,1747823490694,-231.76326273,0.00033698,2]
[361812291,1747823490704,-1311519.9056035,0.00033698,2]
[361812292,1747823490714,-420.0,0.00033698,5]
[361812293,1747823490724,-420.0,0.00033698,5]
[361812294,1747823490734,-420.0,0.00033698,5]
[361812295,1747823490744,-368.0747573,0.00033698,2]
[361812296,1747823490754,-420.0,0.00033698,5]
[361812297,1747823490764,-420.0,0.00033698,5]
[361812298,1747823490774,-420.0,0.00033698,5]
[361812299,1747823490785,-420.0,0.00033698,5]
[361812300,1747823490796,-223.89487434,0.00033698,5]
[361812301,1747823490807,-420.0,0.00033698,5]
[361812302,1747823490817,-420.0,0.00033698,5]
[361812303,1747823490827,-292.5436103,0.00033698,5]
[361812304,1747823490837,-220.0,0.00033698,5]
[361812305,1747823490847,-420.0,0.00033698,5]
[361812306,1747823490857,-420.0,0.00033698,5]
[361812307,1747823490867,-296.71033229,0.00033698,5]
[361812308,1747823490878,-420.0,0.00033698,3]
[361812309,1747823490887,-420.0,0.00033698,5]
[361812310,1747823490897,-420.0,0.00033698,5]
[361812311,1747823490907,-439.12925488,0.00033698,5]
[361812312,1747823490917,-420.0,0.00033698,5]
[361812313,1747823490927,-420.0,0.00033698,5]
[361812314,1747823490937,-420.0,0.00033698,5]
[361812315,1747823490946,-868.63,0.00033698,5]
[361812316,1747823490957,-420.0,0.00033698,5]
[361812317,1747823490967,-420.0,0.00033698,5]
[361812318,1747823490976,-771.73,0.00033698,5]
[361812319,1747823490986,-420.0,0.00033698,5]
[361812320,1747823490995,-1206.97,0.00033698,5]
[361812321,1747823491006,-420.0,0.00033698,5]
[361812322,1747823491015,-420.0,0.00033698,5]
[361812323,1747823491025,-1764.15,0.00033698,5]
[361812324,1747823491034,-497.1,0.00033698,5]
[361812325,1747823491045,-550.16,0.00033698,5]
[361812326,1747823491054,-420.0,0.00033698,5]
[361812327,1747823491064,-420.0,0.00033698,5]
[361812328,1747823491074,-420.0,0.00033698,5]
[361812329,1747823491084,-965.56,0.00033698,5]
[361812330,1747823491093,-562.65,0.00033698,5]
[361812331,1747823491103,-616.51,0.00033698,5]
[361812332,1747823491112,-420.0,0.00033698,5]
[361812333,1747823491122,-420.0,0.00033698,5]
[361812334,1747823491132,-611.48,0.00033698,5]
[361812335,1747823491141,-420.0,0.00033698,5]
[361812336,1747823491151,-420.0,0.00033698,5]
[361812337,1747823491161,-420.0,0.00033698,5]
[361812338,1747823491170,-420.0,0.00033698,5]
[361812339,1747823491180,-420.0,0.00033698,5]
[361812340,1747823491189,-499.33,0.00033698,5]
[361812341,1747823491199,-506.54,0.00033698,5]
[361812342,1747823491209,-420.0,0.00033698,5]
[361812343,1747823491219,-911.46,0.00033698,5]
[361812344,1747823491228,-1153.75,0.00033698,5]
[361812345,1747823491239,-420.0,0.00033698,5]
[361812346,1747823491248,-420.0,0.00033698,5]
[361812347,1747823491258,-420.0,0.00033698,5]
[361812348,1747823491268,-420.0,0.00033698,5]
[361812349,1747823491278,-420.0,0.00033698,5]
[361812350,1747823491287,-420.0,0.00033698,5]
[361812351,1747823491298,-730.43,0.00033698,5]
[361812352,1747823491307,-420.0,0.00033698,5]
[361812353,1747823491317,-420.0,0.00033698,5]
[361812354,1747823491326,-1697.54,0.00033698,5]
[361812355,1747823491336,-579.77,0.00033698,5]
[361812356,1747823491346,-420.0,0.00033698,5]
[361812357,1747823491356,-420.0,0.00033698,5]
[361812358,1747823491371,-420.0,0.00033698,5]
[361812359,1747823491381,-420.0,0.00033698,5]
[361812360,1747823491391,-420.0,0.00033698,5]
[361812361,1747823491401,-570.61,0.00033698,5]
[361812362,1747823491413,-420.0,0.00033698,5]
[361812363,1747823491423,-420.0,0.00033698,5]
[361812364,1747823491432,-788.01,0.00033698,5]
[361812365,1747823491443,-420.0,0.00033698,5]
[361812366,1747823491453,-1490.72,0.00033698,5]
[361812367,1747823491463,-420.0,0.00033698,5]
[361812368,1747823491472,-917.84,0.00033698,5]
[361812369,1747823491482,-642.67,0.00033698,5]
[361812370,1747823491492,-420.0,0.00033698,5]
[361812371,1747823491501,-807.74,0.00033698,5]
[361812372,1747823491511,-901.58,0.00033698,5]
[361812373,1747823491521,-420.0,0.00033698,5]